[Event "NJSK 2022 Meisjes C"]
[Site "Almelo, Netherlands"]
[Date "2022.05.02"]
[Round "2.6"]
[White "Tunyluhulima, Serana"]
[Black "Gergin, Isafara"]
[Result "0-1"]
[TimeControl "90min/40moves + 30min + 30sec/move"]
[WhiteElo "1617"]
[BlackElo "1723"]

1. e4 {[%clk 01:30:59]} c5 {[%clk 01:30:54]} {[%emt 00:00:07]} 2. Nf3 {[%clk
01:31:11]} {[%emt 00:00:18]} Nc6 {[%clk 01:31:18]} {[%emt 00:00:05]} 3. Nc3
{[%clk 01:31:21]} {[%emt 00:00:20]} d6 {[%clk 01:31:01]} {[%emt 00:00:46]} 4.
Bb5 {[%clk 01:31:15]} {[%emt 00:00:37]} Bd7 {[%clk 01:30:46]} {[%emt 00:00:45]}
5. Bxc6 {[%clk 01:30:09]} {[%emt 00:01:36]} Bxc6 {[%clk 01:30:28]} {[%emt
00:00:48]} 6. d4 {[%clk 01:28:45]} {[%emt 00:01:54]} cxd4 {[%clk 01:29:52]}
{[%emt 00:01:07]} 7. Nxd4 {[%clk 01:28:20]} {[%emt 00:00:54]} Nf6 {[%emt
00:04:09]} 8. Qe2 {[%clk 01:25:27]} {[%emt 00:03:20]} e5 {[%clk 01:20:34]}
{[%emt 00:06:12]} 9. Nf3 {[%clk 01:24:03]} {[%emt 00:01:54]} Be7 {[%clk
01:19:08]} {[%emt 00:01:55]} 10. O-O {[%clk 01:23:22]} {[%emt 00:01:12]} O-O
{[%clk 01:17:39]} {[%emt 00:01:59]} 11. Rd1 {[%clk 01:20:29]} {[%emt 00:03:23]}
Qd7 {[%clk 01:13:44]} {[%emt 00:04:25]} 12. Nxe5 {[%clk 01:17:10]} {[%emt
00:03:49]} Qe6 {[%clk 01:07:43]} {[%emt 00:06:31]} 13. Nxc6 {[%clk 01:15:00]}
{[%emt 00:02:40]} bxc6 {[%clk 01:08:02]} {[%emt 00:00:10]} 14. Bg5 {[%clk
01:10:56]} {[%emt 00:04:35]} h6 {[%clk 01:02:04]} {[%emt 00:06:28]} 15. Bh4
{[%clk 01:08:32]} {[%emt 00:02:53]} Rfe8 {[%clk 00:55:39]} {[%emt 00:06:56]} 16.
Bg3 {[%clk 01:02:42]} {[%emt 00:06:20]} Rad8 {[%clk 00:44:03]} {[%emt
00:12:06]} 17. Rd4 {[%clk 00:55:02]} {[%emt 00:08:10]} Nd7 {[%clk 00:31:19]}
{[%emt 00:13:14]} 18. Rad1 {[%clk 00:48:46]} {[%emt 00:06:46]} Ne5 {[%clk
00:24:03]} {[%emt 00:07:46]} 19. h3 {[%clk 00:39:28]} {[%emt 00:09:47]} Bf6
{[%clk 00:16:50]} {[%emt 00:07:44]} 20. Kh1 {[%clk 00:33:17]} {[%emt 00:06:40]}
Qe7 {[%clk 00:09:36]} {[%emt 00:07:45]} 21. b4 {[%clk 00:31:02]} {[%emt
00:02:46]} Qb7 {[%clk 00:04:19]} {[%emt 00:05:46]} 22. b5 {[%clk 00:30:17]}
{[%emt 00:01:15]} Ng6 {[%clk 00:02:31]} {[%emt 00:02:18]} 23. bxc6 {[%clk
00:27:54]} {[%emt 00:02:53]} Qxc6 {[%clk 00:02:10]} {[%emt 00:00:50]} 24. Rc4
{[%clk 00:27:56]} {[%emt 00:00:29]} Qa6 {[%clk 00:01:56]} {[%emt 00:00:44]} 25.
Ra4 {[%clk 00:25:04]} {[%emt 00:03:21]} Qc6 {[%clk 00:01:29]} {[%emt 00:00:57]}
26. Rc4 {[%clk 00:23:44]} {[%emt 00:01:50]} Qd7 {[%clk 00:01:14]} {[%emt
00:00:46]} 27. Rxd6 {[%clk 00:23:19]} {[%emt 00:00:55]} Qb7 {[%clk 00:01:22]}
{[%emt 00:00:22]} 28. Rxd8 {[%clk 00:22:53]} {[%emt 00:00:56]} Rxd8 {[%clk
00:01:45]} {[%emt 00:00:06]} 29. Rc7 {[%clk 00:22:25]} {[%emt 00:00:59]} Qb6
{[%clk 00:01:21]} {[%emt 00:00:55]} 30. Qc4 {[%clk 00:22:17]} {[%emt 00:00:36]}
Rf8 {[%clk 00:01:07]} {[%emt 00:00:45]} 31. a4 {[%clk 00:19:42]} {[%emt
00:03:06]} Qb2 {[%clk 00:01:15]} {[%emt 00:00:21]} 32. Nd5 {[%clk 00:19:02]}
{[%emt 00:01:10]} Be5 {[%clk 00:00:58]} {[%emt 00:00:46]} 33. Bxe5 {[%clk
00:17:48]} {[%emt 00:01:44]} Nxe5 {[%clk 00:01:04]} {[%emt 00:00:25]} 34. Ne7+
{[%clk 00:17:16]} {[%emt 00:01:02]} Kh7 {[%clk 00:01:17]} {[%emt 00:00:17]} 35.
Qe2 {[%clk 00:16:47]} {[%emt 00:00:59]} Qc1+ {[%clk 00:01:08]} {[%emt
00:00:39]} 36. Kh2 {[%clk 00:17:00]} {[%emt 00:00:16]} Qf4+ {[%clk 00:01:18]}
{[%emt 00:00:21]} 37. Kg1 {[%clk 00:15:58]} {[%emt 00:01:32]} Nf3+ {[%clk
00:01:18]} {[%emt 00:00:29]} 38. Qxf3 {[%clk 00:16:06]} {[%emt 00:00:22]} Qxc7
{[%clk 00:01:33]} {[%emt 00:00:16]} 39. Qf5+ {[%clk 00:15:53]} {[%emt
00:00:42]} g6 {[%clk 00:00:40]} {[%emt 00:01:24]} 40. Nxg6 {[%clk 00:15:55]}
{[%emt 00:00:28]} Rb8 {[%clk 00:00:43]} {[%emt 00:00:27]} 41. Ne7+ {[%clk
00:13:47]} {[%emt 00:02:38]} Kg7 {[%clk 00:29:24]} {[%emt 00:02:20]} 42. Qg4+
{[%clk 00:44:03]} {[%emt 00:00:43]} Kf8 {[%clk 00:28:32]} {[%emt 00:01:22]} 43.
g3 {[%clk 00:41:47]} {[%emt 00:02:46]} Qxe7 {[%clk 00:27:54]} {[%emt 00:01:07]}
44. Qf4 {[%clk 00:40:55]} {[%emt 00:01:22]} Rb6 {[%clk 00:26:39]} {[%emt
00:01:45]} 45. a5 {[%clk 00:39:26]} {[%emt 00:01:59]} Rb1+ {[%clk 00:26:02]}
{[%emt 00:01:07]} 46. Kg2 {[%clk 00:38:42]} {[%emt 00:01:13]} Qg5 {[%clk
00:25:10]} {[%emt 00:01:24]} 47. Qxg5 {[%clk 00:38:09]} {[%emt 00:01:03]} hxg5
{[%clk 00:25:32]} {[%emt 00:00:08]} 48. Kf3 {[%clk 00:37:15]} {[%emt 00:01:24]}
Ra1 {[%clk 00:25:51]} {[%emt 00:00:11]} 49. Kg4 {[%clk 00:37:25]} {[%emt
00:00:19]} Rxa5 {[%clk 00:26:15]} {[%emt 00:00:07]} 50. f4 {[%clk 00:37:18]}
{[%emt 00:00:37]} gxf4 {[%clk 00:25:51]} {[%emt 00:00:54]} 51. Kxf4 {[%clk
00:37:32]} {[%emt 00:00:16]} Rc5 {[%clk 00:23:50]} {[%emt 00:02:31]} 52. g4
{[%clk 00:37:19]} {[%emt 00:00:43]} a5 {[%clk 00:23:25]} {[%emt 00:00:55]} 53.
Ke3 {[%clk 00:33:52]} {[%emt 00:03:57]} a4 {[%clk 00:23:28]} {[%emt 00:00:27]}
54. Kd2 {[%clk 00:33:35]} {[%emt 00:00:46]} a3 {[%clk 00:23:44]} {[%emt
00:00:15]} 55. Kc1 {[%clk 00:33:44]} {[%emt 00:00:20]} Rb5 {[%clk 00:24:04]}
{[%emt 00:00:11]} 56. h4 {[%clk 00:33:44]} {[%emt 00:00:30]} a2 {[%clk
00:24:25]} {[%emt 00:00:09]} 57. h5 {[%clk 00:33:49]} {[%emt 00:00:25]} a1=Q+
{[%clk 00:24:45]} {[%emt 00:00:09]} 58. Kd2 {[%clk 00:34:14]} {[%emt 00:00:05]}
Qd4+ {[%clk 00:25:01]} {[%emt 00:00:14]} 59. Kc1 {[%clk 00:34:24]} {[%emt
00:00:20]} Qe3+ {[%clk 00:25:10]} {[%emt 00:00:22]} 60. Kd1 {[%clk 00:34:30]}
{[%emt 00:00:25]} Rb1# {[%clk 00:25:36]} {[%emt 00:00:03]} 0-1

[Event "NJSK 2022 Meisjes C"]
[Site "Almelo, Netherlands"]
[Date "2022.05.02"]
[Round "2.7"]
[White "Jonkman, Sophia"]
[Black "De Bruijne, Marlies"]
[Result "0-1"]
[TimeControl "90min/40moves + 30min + 30sec/move"]
[WhiteElo "1417"]
[BlackElo "858"]

1. d4 {[%clk 01:30:58]} {[%emt 00:00:02]} d5 {[%clk 01:30:51]} {[%emt
00:00:09]} 2. c4 {[%clk 01:30:59]} {[%emt 00:00:29]} dxc4 {[%clk 01:30:02]}
{[%emt 00:01:19]} 3. Qa4+ {[%clk 01:30:44]} {[%emt 00:00:45]} Nc6 {[%clk
01:29:11]} {[%emt 00:01:21]} 4. e3 {[%clk 01:30:32]} {[%emt 00:00:43]} Nf6
{[%clk 01:27:36]} {[%emt 00:02:04]} 5. Qxc4 {[%clk 01:29:49]} {[%emt 00:01:14]}
Bf5 {[%clk 01:25:55]} {[%emt 00:02:09]} 6. Nc3 {[%clk 01:26:34]} {[%emt
00:03:46]} Ne4 {[%clk 01:19:26]} {[%emt 00:06:59]} 7. Bd3 {[%clk 01:24:52]}
{[%emt 00:02:12]} Nd6 {[%clk 01:18:11]} {[%emt 00:01:45]} 8. Qb3 {[%clk
01:15:59]} {[%emt 00:09:23]} Bxd3 {[%clk 01:18:05]} {[%emt 00:00:35]} 9. Nf3
{[%clk 01:13:19]} {[%emt 00:03:11]} Na5 {[%clk 01:15:22]} {[%emt 00:03:13]} 10.
Qa4+ {[%clk 01:07:50]} {[%emt 00:05:59]} Nc6 {[%clk 01:15:13]} {[%emt
00:00:34]} 11. d5 {[%clk 01:05:54]} {[%emt 00:02:31]} b5 {[%clk 01:12:07]}
{[%emt 00:03:35]} 12. Qd1 {[%clk 01:04:56]} {[%emt 00:01:29]} Nb4 {[%clk
01:11:12]} {[%emt 00:01:25]} 13. Nd4 {[%clk 01:02:16]} {[%emt 00:03:10]} Be4
{[%clk 01:04:27]} {[%emt 00:07:14]} 14. O-O {[%clk 00:59:24]} {[%emt 00:03:23]}
Nxd5 {[%clk 01:02:17]} {[%emt 00:02:39]} 15. Qd2 {[%clk 00:45:20]} {[%emt
00:14:35]} Nxc3 {[%clk 01:01:52]} {[%emt 00:00:55]} 16. Qxc3 {[%clk 00:43:46]}
{[%emt 00:02:04]} Qd7 {[%clk 00:58:44]} {[%emt 00:03:37]} 17. h3 {[%clk
00:41:46]} {[%emt 00:02:30]} g6 {[%clk 00:57:11]} {[%emt 00:02:03]} 18. f3
{[%clk 00:39:18]} {[%emt 00:02:58]} Bb7 {[%clk 00:54:44]} {[%emt 00:02:58]} 19.
Nxb5 {[%clk 00:34:45]} {[%emt 00:05:03]} Nxb5 {[%clk 00:51:16]} {[%emt
00:03:57]} 20. Qxh8 {[%clk 00:34:14]} {[%emt 00:01:02]} h5 {[%clk 00:50:13]}
{[%emt 00:01:32]} 21. b3 {[%clk 00:31:28]} {[%emt 00:03:17]} O-O-O {[%clk
00:50:20]} {[%emt 00:00:23]} 22. Bb2 {[%clk 00:29:25]} {[%emt 00:02:33]} e6
{[%clk 00:49:15]} {[%emt 00:01:34]} 23. a4 {[%clk 00:27:15]} {[%emt 00:02:41]}
Nd6 {[%clk 00:48:45]} {[%emt 00:00:59]} 24. Rfd1 {[%clk 00:27:02]} {[%emt
00:00:44]} f5 {[%clk 00:46:40]} {[%emt 00:02:34]} 25. Qc3 {[%clk 00:24:50]}
{[%emt 00:02:43]} Qe7 {[%clk 00:44:08]} {[%emt 00:03:01]} 26. Ba3 {[%clk
00:24:19]} {[%emt 00:01:02]} Qg7 {[%clk 00:42:36]} {[%emt 00:02:01]} 27. Qc2
{[%clk 00:23:18]} {[%emt 00:01:32]} g5 {[%clk 00:40:23]} {[%emt 00:02:42]} 28.
Rac1 {[%clk 00:19:34]} {[%emt 00:04:14]} Kb8 {[%clk 00:35:29]} {[%emt
00:05:24]} 29. Rd3 {[%clk 00:13:17]} {[%emt 00:06:48]} Rc8 {[%clk 00:35:01]}
{[%emt 00:00:57]} 30. Rc3 {[%clk 00:11:04]} {[%emt 00:02:43]} g4 {[%clk
00:31:55]} {[%emt 00:03:36]} 31. hxg4 {[%clk 00:10:59]} {[%emt 00:00:36]} hxg4
{[%clk 00:31:51]} {[%emt 00:00:33]} 32. f4 {[%clk 00:10:54]} {[%emt 00:00:36]}
Be4 {[%clk 00:30:45]} {[%emt 00:01:36]} 33. Qe2 {[%clk 00:10:01]} {[%emt
00:01:23]} Nb7 {[%clk 00:26:47]} {[%emt 00:04:28]} 34. Bb2 {[%clk 00:09:10]}
{[%emt 00:01:22]} Qh7 {[%clk 00:26:02]} {[%emt 00:01:13]} 35. Qa6 {[%clk
00:08:44]} {[%emt 00:00:57]} Bd6 {[%clk 00:24:01]} {[%emt 00:02:30]} 36. Rc4
{[%clk 00:07:41]} {[%emt 00:01:33]} Bd3 {[%clk 00:22:26]} {[%emt 00:02:05]} 37.
Bd4 {[%clk 00:06:20]} {[%emt 00:01:51]} Bc5 {[%clk 00:19:20]} {[%emt 00:03:36]}
38. Bxc5 {[%clk 00:05:51]} {[%emt 00:00:59]} Nxc5 {[%clk 00:19:38]} {[%emt
00:00:12]} 39. Qb5+ {[%clk 00:06:11]} {[%emt 00:00:11]} Nb7 {[%clk 00:19:46]}
{[%emt 00:00:21]} 40. Qa6 {[%clk 00:05:29]} {[%emt 00:01:13]} g3 {[%clk
00:19:06]} {[%emt 00:01:09]} 41. Qxb7+ {[%clk 00:04:09]} {[%emt 00:01:50]} Kxb7
{[%clk 00:19:28]} {[%emt 00:00:08]} 42. Rb4+ {[%clk 00:04:33]} {[%emt
00:00:06]} Ka8 {[%clk 00:19:50]} {[%emt 00:00:09]} 0-1

[Event "NJSK 2022 Meisjes C"]
[Site "Almelo, Netherlands"]
[Date "2022.05.02"]
[Round "2.8"]
[White "Kulikova, Polina"]
[Black "Koorevaar, Sarah-Joy"]
[Result "1/2-1/2"]
[TimeControl "90min/40moves + 30min + 30sec/move"]
[WhiteElo "1117"]
[BlackElo "849"]

1. d4 {[%clk 01:30:27]} {[%emt 00:00:32]} Nf6 {[%clk 01:30:51]} {[%emt
00:00:10]} 2. c4 {[%clk 01:30:28]} {[%emt 00:00:30]} e6 {[%clk 01:31:03]}
{[%emt 00:00:17]} 3. Nf3 {[%clk 01:30:02]} {[%emt 00:00:55]} b6 {[%clk
01:31:05]} {[%emt 00:00:29]} 4. Bg5 {[%clk 01:28:37]} {[%emt 00:01:54]} Bb7
{[%clk 01:30:51]} {[%emt 00:00:45]} 5. Nc3 {[%clk 01:27:51]} {[%emt 00:01:16]}
Bb4 {[%clk 01:31:03]} {[%emt 00:00:18]} 6. Qc2 {[%clk 01:26:53]} {[%emt
00:01:27]} O-O {[%clk 01:29:57]} {[%emt 00:01:36]} 7. e3 {[%clk 01:26:21]}
{[%emt 00:01:01]} d5 {[%clk 01:28:54]} {[%emt 00:01:34]} 8. Bd3 {[%clk
01:26:09]} {[%emt 00:00:42]} Bxc3+ {[%clk 01:26:02]} {[%emt 00:03:22]} 9. Qxc3
{[%clk 01:23:14]} {[%emt 00:03:25]} dxc4 {[%clk 01:22:54]} {[%emt 00:03:39]} 10.
Qxc4 {[%clk 01:23:06]} {[%emt 00:00:37]} Ba6 {[%clk 01:21:23]} {[%emt
00:02:01]} 11. Qc2 {[%clk 01:22:06]} {[%emt 00:01:28]} Bxd3 {[%clk 01:18:31]}
{[%emt 00:03:24]} 12. Qxd3 {[%clk 01:21:26]} {[%emt 00:01:11]} Nc6 {[%clk
01:16:08]} {[%emt 00:02:52]} 13. a3 {[%clk 01:15:01]} {[%emt 00:06:56]} e5
{[%clk 01:16:14]} {[%emt 00:00:24]} 14. Qc2 {[%clk 01:12:10]} {[%emt 00:03:21]}
Qd6 {[%clk 01:14:54]} {[%emt 00:01:49]} 15. Rc1 {[%clk 01:09:04]} {[%emt
00:03:35]} Nd8 {[%clk 01:04:49]} {[%emt 00:10:37]} 16. Qxc7 {[%clk 01:08:40]}
{[%emt 00:00:54]} Qxc7 {[%clk 01:04:53]} {[%emt 00:00:26]} 17. Rxc7 {[%clk
01:09:00]} {[%emt 00:00:10]} Ne6 {[%clk 01:05:12]} {[%emt 00:00:11]} 18. Rc2
{[%clk 01:05:12]} {[%emt 00:04:15]} exd4 {[%clk 01:04:05]} {[%emt 00:01:41]} 19.
Bxf6 {[%clk 01:05:07]} {[%emt 00:00:33]} gxf6 {[%clk 01:04:00]} {[%emt
00:00:36]} 20. Nxd4 {[%clk 01:05:09]} {[%emt 00:00:28]} Nxd4 {[%clk 01:03:40]}
{[%emt 00:00:49]} 21. exd4 {[%clk 01:05:26]} {[%emt 00:00:14]} Rfe8+ {[%clk
01:03:41]} {[%emt 00:00:29]} 22. Kd2 {[%clk 01:05:12]} {[%emt 00:00:44]} Rad8
{[%clk 01:02:38]} {[%emt 00:01:33]} 23. Kd3 {[%clk 01:04:25]} {[%emt 00:01:17]}
Re7 {[%clk 01:02:22]} {[%emt 00:00:45]} 24. Rhc1 {[%clk 01:04:42]} {[%emt
00:00:13]} Red7 {[%clk 01:02:01]} {[%emt 00:00:51]} 25. Rc4 {[%clk 00:58:55]}
{[%emt 00:06:18]} Kf8 {[%clk 01:00:57]} {[%emt 00:01:34]} 26. Re1 {[%clk
00:58:23]} {[%emt 00:01:01]} a5 {[%clk 01:00:05]} {[%emt 00:01:24]} 27. a4
{[%clk 00:57:59]} {[%emt 00:00:53]} Kg7 {[%clk 01:00:05]} {[%emt 00:00:29]} 28.
Re4 {[%clk 00:58:12]} {[%emt 00:00:17]} h5 {[%clk 00:59:22]} {[%emt 00:01:14]}
29. Rc6 {[%clk 00:58:05]} {[%emt 00:00:37]} Rb8 {[%clk 00:56:36]} {[%emt
00:03:17]} 30. Rf4 {[%clk 00:58:14]} {[%emt 00:00:19]} b5 {[%clk 00:56:32]}
{[%emt 00:00:35]} 31. Ra6 {[%clk 00:51:09]} {[%emt 00:07:35]} bxa4 {[%clk
00:55:36]} {[%emt 00:01:26]} 32. Rxa5 {[%clk 00:51:23]} {[%emt 00:00:16]} Rb3+
{[%clk 00:55:33]} {[%emt 00:00:32]} 33. Kc2 {[%clk 00:49:25]} {[%emt 00:02:29]}
Rc7+ {[%clk 00:55:34]} {[%emt 00:00:29]} 34. Kd2 {[%clk 00:44:19]} {[%emt
00:05:35]} Rxb2+ {[%clk 00:55:15]} {[%emt 00:00:49]} 35. Ke3 {[%clk 00:44:39]}
{[%emt 00:00:10]} Rc3+ {[%clk 00:55:09]} {[%emt 00:00:36]} 36. Ke4 {[%clk
00:44:55]} {[%emt 00:00:14]} a3 {[%clk 00:55:24]} {[%emt 00:00:15]} 37. Rf3
{[%clk 00:45:05]} {[%emt 00:00:20]} Re2+ {[%clk 00:53:57]} {[%emt 00:01:58]} 38.
Kf4 {[%clk 00:43:29]} {[%emt 00:02:05]} Rc4 {[%clk 00:52:07]} {[%emt 00:02:20]}
39. Rfxa3 {[%clk 00:39:45]} {[%emt 00:04:14]} Rxd4+ {[%clk 00:51:52]} {[%emt
00:00:46]} 40. Kf3 {[%clk 00:40:07]} {[%emt 00:00:04]} Re5 {[%clk 00:51:38]}
{[%emt 00:00:45]} 41. Rxe5 {[%clk 00:39:56]} {[%emt 00:00:44]} fxe5 {[%clk
00:51:26]} {[%emt 00:00:42]} 42. Ke3 {[%clk 00:36:54]} {[%emt 00:03:32]} f5
{[%clk 00:50:52]} {[%emt 00:01:04]} 43. g3 {[%clk 00:35:38]} {[%emt 00:01:46]}
h4 {[%clk 00:49:33]} {[%emt 00:01:49]} 44. f4 {[%clk 00:33:29]} {[%emt
00:02:39]} hxg3 {[%clk 00:48:16]} {[%emt 00:01:47]} 45. hxg3 {[%clk 00:32:35]}
{[%emt 00:01:24]} Kg6 {[%clk 00:47:10]} {[%emt 00:01:35]} 46. Ra5 {[%clk
00:29:38]} {[%emt 00:07:08]} Re4+ {[%clk 00:42:45]} {[%emt 00:01:28]} 47. Kf3
{[%clk 00:28:42]} {[%emt 00:01:26]} exf4 {[%clk 00:41:51]} {[%emt 00:01:25]} 48.
gxf4 {[%clk 00:28:57]} {[%emt 00:00:15]} Rb4 {[%clk 00:39:53]} {[%emt
00:02:24]} 49. Kg3 {[%clk 00:24:53]} {[%emt 00:04:36]} Rb3+ {[%clk 00:39:54]}
{[%emt 00:00:31]} 50. Kh4 {[%clk 00:25:06]} {[%emt 00:00:17]} Rf3 {[%clk
00:39:24]} {[%emt 00:00:57]} 51. Ra6+ {[%clk 00:25:25]} {[%emt 00:00:15]} Kf7
{[%clk 00:38:36]} {[%emt 00:01:16]} 52. Kg5 {[%emt 00:01:13]} Rc3 {[%clk
00:37:47]} {[%emt 00:00:06]} 53. Kxf5 {[%clk 00:26:12]} {[%emt 00:00:13]} Rc5+
{[%clk 00:37:57]} {[%emt 00:00:19]} 54. Kg4 {[%clk 00:26:31]} {[%emt 00:00:12]}
Rb5 {[%clk 00:36:33]} {[%emt 00:01:51]} 55. f5 {[%clk 00:24:46]} {[%emt
00:02:19]} Rb1 {[%clk 00:36:05]} {[%emt 00:00:54]} 56. Ra3 {[%clk 00:21:08]}
{[%emt 00:04:02]} Kf6 {[%clk 00:34:52]} {[%emt 00:01:52]} 57. Ra6+ {[%clk
00:21:01]} {[%emt 00:00:37]} Kf7 {[%clk 00:35:12]} {[%emt 00:00:11]} 58. Ra4
{[%clk 00:18:01]} {[%emt 00:03:14]} Kf6 {[%clk 00:33:53]} {[%emt 00:02:05]} 59.
Ra6+ {[%clk 00:17:45]} {[%emt 00:00:46]} Kf7 {[%clk 00:34:04]} {[%emt
00:00:19]} 60. Kf4 {[%clk 00:14:27]} {[%emt 00:03:48]} Rf1+ {[%clk 00:33:54]}
{[%emt 00:00:40]} 61. Ke5 {[%clk 00:14:25]} {[%emt 00:00:31]} Re1+ {[%clk
00:33:52]} {[%emt 00:00:33]} 62. Ke4 {[%emt 00:02:01]} 1/2-1/2

[Event "NJSK 2022 Meisjes C"]
[Site "Almelo, Netherlands"]
[Date "2022.05.02"]
[Round "2.9"]
[White "Yildirim, Azra"]
[Black "Hagen, Carlijn"]
[Result "1-0"]
[TimeControl "90min/40moves + 30min + 30sec/move"]
[WhiteElo "985"]
[BlackElo "783"]

1. e4 {[%clk 01:30:52]} {[%emt 00:00:07]} e5 {[%clk 01:30:51]} {[%emt
00:00:09]} 2. Nf3 {[%clk 01:31:11]} {[%emt 00:00:12]} Nc6 {[%clk 01:31:05]}
{[%emt 00:00:16]} 3. Bc4 {[%clk 01:31:07]} {[%emt 00:00:34]} Nf6 {[%clk
01:30:26]} {[%emt 00:01:08]} 4. Ng5 {[%clk 01:30:17]} {[%emt 00:01:20]} d5
{[%clk 01:30:00]} {[%emt 00:00:56]} 5. exd5 {[%clk 01:29:43]} {[%emt 00:01:04]}
Na5 {[%clk 01:28:58]} {[%emt 00:01:33]} 6. d3 {[%clk 01:28:53]} {[%emt
00:01:19]} Bg4 {[%clk 01:27:41]} {[%emt 00:01:47]} 7. f3 {[%clk 01:27:04]}
{[%emt 00:02:19]} Bf5 {[%clk 01:26:19]} {[%emt 00:01:52]} 8. Qe2 {[%clk
01:24:37]} {[%emt 00:02:56]} Qd6 {[%clk 01:22:54]} {[%emt 00:03:55]} 9. Bf4
{[%clk 01:23:21]} {[%emt 00:01:46]} Nd7 {[%clk 01:22:08]} {[%emt 00:01:17]} 10.
Nc3 {[%clk 01:22:10]} {[%emt 00:01:40]} a6 {[%clk 01:21:33]} {[%emt 00:01:06]}
11. O-O-O {[%clk 01:21:18]} {[%emt 00:01:21]} Be7 {[%clk 01:21:08]} {[%emt
00:00:55]} 12. Bd2 {[%clk 01:19:22]} {[%emt 00:02:26]} Nxc4 {[%clk 01:19:55]}
{[%emt 00:01:43]} 13. dxc4 {[%clk 01:18:59]} {[%emt 00:00:53]} Bxg5 {[%clk
01:18:44]} {[%emt 00:01:42]} 14. Bxg5 {[%clk 01:18:41]} {[%emt 00:00:47]} Qg6
{[%clk 01:18:37]} {[%emt 00:00:38]} 15. Bf4 {[%clk 01:17:15]} {[%emt 00:01:56]}
O-O {[%clk 01:17:18]} {[%emt 00:01:48]} 16. Be3 {[%clk 01:15:07]} {[%emt
00:02:38]} b5 {[%clk 01:15:22]} {[%emt 00:02:26]} 17. g4 {[%clk 01:15:01]}
{[%emt 00:00:36]} Bxg4 {[%clk 01:14:02]} {[%emt 00:01:51]} 18. fxg4 {[%clk
01:15:04]} {[%emt 00:00:27]} b4 {[%clk 01:13:25]} {[%emt 00:01:07]} 19. Na4
{[%clk 01:13:54]} {[%emt 00:01:39]} a5 {[%clk 01:11:57]} {[%emt 00:01:58]} 20.
Nc5 {[%clk 01:13:09]} {[%emt 00:01:15]} Nf6 {[%clk 01:10:59]} {[%emt 00:01:29]}
21. Rhg1 {[%clk 01:10:30]} {[%emt 00:03:08]} a4 {[%clk 01:09:25]} {[%emt
00:02:06]} 22. Kb1 {[%clk 01:07:53]} {[%emt 00:03:06]} Ne4 {[%clk 01:07:35]}
{[%emt 00:02:19]} 23. Nd7 {[%clk 01:05:37]} {[%emt 00:02:47]} Rfd8 {[%clk
01:07:03]} {[%emt 00:01:02]} 24. Nxe5 {[%clk 01:05:32]} {[%emt 00:00:35]} Qf6
{[%clk 01:06:26]} {[%emt 00:01:05]} 25. Bd4 {[%clk 01:04:46]} {[%emt 00:01:17]}
Qa6 {[%clk 01:03:58]} {[%emt 00:02:59]} 26. Qxe4 {[%clk 01:03:58]} {[%emt
00:01:18]} b3 {[%clk 01:04:01]} {[%emt 00:00:27]} 27. a3 {[%clk 01:04:11]}
{[%emt 00:00:17]} bxc2+ {[%clk 01:03:48]} {[%emt 00:00:43]} 28. Qxc2 {[%clk
01:04:08]} {[%emt 00:00:32]} Re8 {[%clk 01:03:50]} {[%emt 00:00:29]} 29. Qf2
{[%clk 01:02:36]} {[%emt 00:02:01]} f6 {[%clk 01:03:33]} {[%emt 00:00:47]} 30.
Nd7 {[%clk 01:01:45]} {[%emt 00:01:21]} Qxc4 {[%emt 00:00:53]} 31. Nxf6+ {[%emt
00:00:38]} Kh8 {[%clk 01:01:12]} {[%emt 00:01:20]} 32. Nxe8 {[%clk 01:02:01]}
{[%emt 00:00:14]} Rxe8 {[%clk 01:01:33]} {[%emt 00:00:09]} 33. Rge1 {[%clk
01:01:44]} {[%emt 00:00:47]} Rb8 {[%clk 01:01:24]} {[%emt 00:00:39]} 34. Qf7
{[%clk 01:01:14]} {[%emt 00:01:00]} Rg8 {[%clk 01:01:23]} {[%emt 00:00:32]} 35.
Re8 {[%clk 01:01:18]} {[%emt 00:00:26]} 1-0